bitfinex/quotes_ETHUSD_20250904
["timestamp","ask_amount","ask_price","bid_price","bid_amount"]
[1757015222807,0.0234,4277.0,4276.9,3.691461]
[1757015223100,0.0234,4277.0,4276.9,4.162961]
[1757015223888,0.0234,4277.0,4276.9,4.86600388]
[1757015224376,0.0234,4277.0,4276.9,0.70304288]
[1757015224590,0.1224,4277.0,4276.8,2.33818964]
[1757015224905,0.1224,4277.0,4276.9,2.63654211]
[1757015224906,0.0234,4277.0,4276.9,2.63654211]
[1757015225107,0.0234,4277.0,4276.9,3.10044211]
[1757015225308,0.0234,4277.0,4276.9,4.18612219]
[1757015225605,0.0234,4277.0,4276.9,3.57194211]
[1757015225982,0.1402,4277.0,4276.9,3.57194211]
[1757015226378,0.0234,4277.0,4276.9,4.36394211]
[1757015226806,0.0234,4277.0,4276.9,7.36394211]
[1757015227010,0.0244,4277.0,4276.9,7.36394211]
[1757015227208,0.0244,4277.0,4276.9,8.81655268]
[1757015227918,0.0244,4277.0,4276.9,8.02455268]
[1757015228122,0.0244,4277.0,4276.9,6.34314211]
[1757015228322,0.0244,4277.0,4276.9,2.33814211]
[1757015228497,0.0244,4277.0,4276.9,2.63654211]
[1757015228696,0.0244,4277.0,4276.9,3.07364211]
[1757015229318,0.0244,4277.0,4276.9,2.33814211]
[1757015229721,0.0244,4277.0,4276.9,4.36540058]
[1757015229916,0.0244,4277.0,4276.9,4.83250058]
[1757015230120,0.0244,4277.0,4276.9,3.62020058]
[1757015230321,0.0244,4277.0,4276.9,2.33814211]
[1757015230625,0.0244,4277.0,4276.9,4.67964211]
[1757015230837,0.0244,4277.0,4276.9,2.45494211]
[1757015231024,0.0244,4277.0,4276.9,2.33814211]
[1757015231512,0.0244,4277.0,4276.9,2.64624211]
[1757015231693,0.1234,4277.0,4276.8,0.1168]
[1757015231890,0.1234,4277.0,4276.8,2.45495236]
[1757015232118,0.1234,4277.0,4276.9,2.33814211]
[1757015232532,0.1234,4277.0,4276.8,0.1168]
[1757015232842,0.1234,4277.0,4276.9,2.33814211]
[1757015234714,0.1234,4277.0,4276.9,3.04125256]
[1757015235949,0.0244,4277.0,4276.9,3.04125256]
[1757015236934,0.0244,4277.0,4276.9,3.81645256]
[1757015237245,0.0244,4277.0,4276.9,4.86902174]
[1757015237458,0.0244,4277.0,4276.9,4.25355256]
[1757015238853,0.0244,4277.0,4276.9,9.04055256]
[1757015239013,0.0244,4277.0,4276.9,9.15735256]
[1757015241451,0.0244,4277.0,4276.9,3.46615256]
[1757015241657,0.0244,4277.0,4276.9,3.34935256]
[1757015241827,0.0244,4277.0,4276.9,3.78645256]
[1757015242034,0.0244,4277.0,4276.9,3.34935256]
[1757015242427,0.0244,4277.0,4276.9,4.25355256]
[1757015242753,0.0244,4277.0,4276.9,5.31223174]
[1757015243327,0.0244,4277.0,4276.9,10.09723174]
[1757015243523,0.0244,4277.0,4276.9,10.21403174]
[1757015244028,0.0244,4277.0,4276.9,13.21403174]
[1757015246435,0.0244,4277.0,4276.9,15.55553174]
[1757015246622,1e-08,4277.0,4276.9,15.55553174]
[1757015246820,1e-08,4277.0,4276.9,13.21403174]
[1757015247240,1e-08,4277.0,4276.9,14.48897077]
[1757015252370,1e-08,4277.0,4276.9,16.83047077]
[1757015254873,1e-08,4277.0,4276.9,16.70467077]
[1757015255756,1e-08,4277.0,4276.9,15.49437077]
[1757015255987,1e-08,4277.0,4276.9,14.70247077]
[1757015256197,1e-08,4277.0,4276.9,13.91047077]
[1757015256501,1e-08,4277.0,4276.9,6.44143174]
[1757015256502,0.09900001,4277.0,4276.9,6.44143174]
[1757015256668,0.99420001,4277.0,4276.9,3.04125256]
[1757015256993,0.99420001,4277.0,4276.9,3.83325256]
[1757015256994,1e-08,4277.0,4276.9,3.83325256]
[1757015257383,1e-08,4277.0,4276.9,3.04125256]
[1757015257580,1e-08,4277.0,4276.9,7.02725256]
[1757015257898,1e-08,4277.0,4276.9,8.75620174]
[1757015259591,1e-08,4277.0,4276.9,9.05190174]
[1757015260002,1e-08,4277.0,4276.9,15.29330174]
[1757015261004,0.001,4277.5,4277.4,2.33786879]
[1757015261202,0.001,4277.5,4277.4,9.32386879]
[1757015261378,0.1,4277.5,4277.4,6.58325348]
[1757015261576,0.1,4277.5,4277.4,11.85025348]
[1757015262002,1.0066,4277.5,4276.4,2.34236931]
[1757015262207,1.0066,4277.5,4277.3,2.33792328]
[1757015262409,1.0066,4277.5,4277.3,2.82792328]
[1757015262410,0.9066,4277.4,4277.3,2.82792328]
[1757015262708,1.0088,4277.4,4277.3,2.82792328]
[1757015263417,1.0088,4277.4,4277.3,0.49]
[1757015263612,0.5922,4277.4,4276.5,5.33832297]
[1757015263779,1.0057,4277.4,4277.2,2.33793101]
[1757015263978,0.5922,4277.4,4277.1,0.70307254]
[1757015264287,0.1022,4277.4,4277.3,2.33792345]
[1757015264910,0.219,4277.4,4277.3,2.33792345]
[1757015265089,1.1225,4277.4,4277.3,2.33792345]
[1757015265293,1.1225,4277.4,4277.1,3.04109542]
[1757015265294,1.1225,4277.4,4277.2,2.33796218]
[1757015265615,0.9035,4277.3,4277.1,3.04109836]
[1757015265925,0.099,4277.2,4277.1,3.04110531]
[1757015266598,0.001,4277.5,4277.4,2.33786879]
[1757015267022,0.1,4277.5,4277.4,2.33786879]
[1757015267219,0.1,4277.5,4277.4,0.1168]
[1757015267530,1.0066,4277.5,4277.1,2.33802842]
[1757015267694,0.1168,4277.2,4277.1,2.4547823]
[1757015267898,1.1225,4277.2,4277.1,2.4547823]
[1757015269128,0.219,4277.2,4277.1,2.4547823]
[1757015269628,0.001,4277.5,4277.4,2.33786879]
[1757015270076,0.1,4277.5,4277.4,2.33786879]
[1757015270533,0.001,4277.5,4277.4,2.33786879]
[1757015270733,0.001,4277.5,4277.4,8.33546879]
[1757015270936,0.001,4277.5,4277.4,8.45226879]
[1757015271147,0.001,4277.5,4277.4,9.77676805]
[1757015271943,0.001,4277.5,4277.4,12.77676805]
[1757015274136,0.001,4277.5,4277.4,12.89356805]
[1757015274567,0.001,4277.9,4277.5,0.049]
[1757015274731,0.001,4277.9,4277.8,2.33765019]
[1757015274933,0.001,4277.9,4277.8,3.00006177]
[1757015275566,0.001,4277.9,4277.8,3.72406177]
[1757015275869,0.001,4277.9,4277.8,4.19566177]
[1757015276245,0.001,4277.9,4277.8,8.20066177]
[1757015276933,0.001,4277.9,4277.8,7.72906177]
[1757015277966,0.001,4277.9,4277.8,10.07056176]
[1757015278667,0.001,4277.9,4277.8,9.34656176]
[1757015279355,0.001,4277.9,4277.8,5.34156176]
[1757015279569,0.001,4277.9,4277.8,7.32916176]
[1757015280351,0.001,4277.9,4277.8,6.13356176]
[1757015280556,0.1,4277.9,4277.8,2.34149999]
[1757015280770,0.1,4277.9,4277.8,4.67915018]
[1757015281975,0.001,4277.9,4277.8,4.67915018]
[1757015282186,0.001,4277.9,4277.8,6.66675018]
[1757015282358,0.001,4277.9,4277.8,10.66675018]
[1757015282676,0.001,4277.9,4277.8,10.77878852]
[1757015282875,0.001,4277.9,4277.8,10.17158852]
[1757015283079,0.001,4277.9,4277.8,11.36718852]
[1757015283681,0.001,4277.9,4277.8,6.17158852]
[1757015285205,0.001,4277.9,4277.8,4.79595018]
[1757015285359,0.1,4277.9,4277.8,4.79595018]
[1757015285765,0.001,4277.9,4277.8,4.79595018]
[1757015285971,0.001,4277.9,4277.8,5.09165018]
[1757015286201,0.001,4277.9,4277.8,13.23545018]
[1757015286479,0.001,4277.9,4277.8,16.01083407]
[1757015288990,0.001,4277.9,4277.8,12.01383407]
[1757015289182,0.001,4277.9,4277.8,15.57163407]
[1757015289490,0.001,4277.9,4277.8,16.04403407]
[1757015290268,1e-08,4278.8,4278.7,3.12915848]
[1757015290474,1e-08,4278.8,4278.7,18.51572465]
[1757015290672,1e-08,4278.8,4278.7,19.73215307]
[1757015290872,1e-08,4278.8,4278.7,19.82582451]
[1757015291493,1e-08,4278.8,4278.7,13.84806899]
[1757015293460,1e-08,4278.8,4278.7,7.81726899]
[1757015293667,1e-08,4278.8,4278.7,11.81226899]
[1757015293866,1e-08,4278.8,4278.7,13.05206899]
[1757015294290,1e-08,4278.8,4278.7,13.37166899]
[1757015294490,1e-08,4278.8,4278.7,7.81726899]
[1757015294692,0.31550001,4278.8,4278.7,7.27062992]
[1757015294895,0.31550001,4278.8,4278.7,8.26662992]
[1757015295075,0.97010001,4278.8,4278.7,6.42682992]
[1757015295266,0.97010001,4278.8,4278.7,2.43082992]
[1757015296299,0.97010001,4278.8,4278.7,0.09367144]
[1757015298100,7.30220387,4278.8,4278.7,0.09367144]
[1757015298268,2.33719242,4278.7,4277.9,2.33758181]
[1757015298469,2.99182854,4278.6,4278.2,0.70293581]
[1757015298696,0.3144,4278.3,4278.2,0.70293581]
[1757015298894,0.4312,4278.3,4278.2,0.70293581]
[1757015299074,1.0869,4278.3,4278.2,0.70293581]
[1757015299970,2.33747326,4278.2,4277.8,0.025]
[1757015300302,2.33747326,4278.2,4277.9,0.70293581]
[1757015300502,0.3133,4278.0,4277.9,0.70293581]
[1757015300683,0.3133,4278.0,4277.9,3.04053135]
[1757015300883,0.3133,4278.0,4277.9,0.70293581]
[1757015301200,0.4301,4278.0,4277.9,3.04053135]
[1757015302414,0.4535,4278.0,4277.9,3.04053135]
[1757015302725,0.1402,4278.0,4277.9,3.04053135]
[1757015303021,0.4524,4278.0,4277.9,3.04053135]
[1757015303906,0.1402,4278.0,4277.9,3.04053135]
[1757015304421,0.4524,4278.0,4277.9,3.04053135]
[1757015306027,0.1402,4278.0,4277.9,3.04053135]
[1757015307022,0.1402,4278.0,4277.9,9.60365344]
[1757015307178,1e-08,4278.8,4278.7,2.33715848]
[1757015307926,1e-08,4278.8,4278.7,5.07172304]
[1757015308129,1e-08,4278.8,4278.7,14.40622303]
[1757015309588,0.09900001,4278.8,4278.7,8.38142303]
[1757015309915,1e-08,4278.8,4278.7,9.14882303]
[1757015310091,1e-08,4278.8,4278.7,10.70840847]
[1757015310702,1e-08,4278.8,4278.7,10.24670847]
[1757015310906,1e-08,4278.8,4278.7,9.94100847]
[1757015311515,1e-08,4278.8,4278.7,10.24670847]
[1757015311920,1e-08,4278.8,4278.7,9.94100847]
[1757015312334,0.09900001,4278.8,4278.7,6.94100847]
[1757015312538,1e-08,4278.8,4278.7,6.94100847]
[1757015313410,1e-08,4278.8,4278.7,7.70840847]
[1757015313607,1e-08,4278.8,4278.7,8.97280847]
[1757015315223,1e-08,4278.8,4278.7,9.08960847]
[1757015316306,1e-08,4278.8,4278.7,10.93200847]
[1757015316831,1e-08,4278.8,4278.7,12.96380847]
[1757015317212,1e-08,4278.8,4278.7,11.72400847]
[1757015317423,0.09900001,4278.8,4278.7,10.93300847]
[1757015317621,0.09900001,4278.8,4278.7,9.37342303]
[1757015317622,0.11680001,4278.8,4278.7,9.37342303]
[1757015317797,0.11680001,4278.8,4278.7,7.03192304]
[1757015318128,1e-08,4278.8,4278.7,7.79932304]
[1757015318334,0.09900001,4278.8,4278.7,7.03192304]
[1757015318701,1e-08,4278.8,4278.7,3.03992304]
[1757015318902,1e-08,4278.8,4278.7,9.75723848]
[1757015319317,1e-08,4278.8,4278.7,9.76023848]
[1757015319632,1e-08,4278.8,4278.7,9.87703848]
[1757015319840,1e-08,4278.8,4278.7,12.87703848]
[1757015320046,1e-08,4278.8,4278.7,15.21853847]
[1757015322538,1e-08,4278.8,4278.7,16.31853847]
[1757015323246,1e-08,4278.8,4278.7,12.32353847]
[1757015323543,1e-08,4278.8,4278.7,15.84093847]
[1757015323754,1e-08,4278.8,4278.7,7.15223848]
[1757015323954,1e-08,4278.8,4278.7,6.86713848]
[1757015324164,1e-08,4278.8,4278.7,11.93723848]
[1757015324369,1e-08,4278.8,4278.7,11.14523848]
[1757015324661,1e-08,4278.8,4278.7,11.93723848]
[1757015325437,1e-08,4278.8,4278.7,11.65213848]
[1757015325634,0.09900001,4278.8,4278.7,6.03992304]
[1757015325857,0.09900001,4278.8,4278.7,10.03292304]
[1757015326060,0.09900001,4278.8,4278.7,7.03292304]
[1757015326486,1.00900001,4278.8,4278.7,4.69576456]
[1757015326635,1.00900001,4278.8,4278.7,7.03292304]
[1757015326636,1.12580001,4278.8,4278.7,7.03292304]
[1757015327162,0.21580001,4278.8,4278.7,7.03292304]
[1757015327660,1.12580001,4278.8,4278.7,4.69576456]
[1757015327965,1.12580001,4278.8,4278.7,7.03292304]
[1757015328133,0.21580001,4278.8,4278.7,7.03292304]
[1757015328333,0.21580001,4278.8,4278.7,3.03992304]
[1757015328734,0.11680001,4278.8,4278.7,3.03992304]
[1757015329163,0.21900001,4278.8,4278.7,3.03992304]
[1757015329330,0.11680001,4278.8,4278.7,3.03992304]
[1757015329536,1e-08,4278.8,4278.7,3.03992304]
[1757015329866,1e-08,4278.8,4278.7,10.85531263]
[1757015330059,1e-08,4278.8,4278.7,10.83194105]
[1757015330456,1e-08,4278.8,4278.7,11.93194105]
[1757015330961,1e-08,4278.8,4278.7,14.82494105]
[1757015331270,1e-08,4278.8,4278.7,15.92494105]
[1757015331467,1e-08,4278.8,4278.7,18.26644104]
[1757015331969,1e-08,4278.8,4278.7,17.16644104]
[1757015335857,1e-08,4278.8,4278.7,18.26644104]
[1757015336042,1e-08,4278.8,4278.7,9.43554104]
[1757015336373,1e-08,4278.8,4278.7,13.42554104]
[1757015336582,0.09900001,4278.8,4278.7,5.38142303]
[1757015336751,1.00900001,4278.8,4278.7,0.70276456]
[1757015337650,1.00900001,4278.8,4278.7,3.03992304]
[1757015337864,1e-08,4278.8,4278.7,3.03992304]
[1757015338244,0.09900001,4278.8,4278.7,3.03992304]
[1757015339072,1e-08,4278.8,4278.7,3.03992304]
[1757015339644,0.09900001,4278.8,4278.7,3.03992304]
[1757015340181,0.09900001,4278.8,4278.7,7.03392304]
[1757015340382,1e-08,4278.8,4278.7,7.03392304]
[1757015340593,1e-08,4278.8,4278.7,8.26821895]
[1757015340792,1e-08,4278.8,4278.7,9.20601895]
[1757015340991,1e-08,4278.8,4278.7,7.98311895]
[1757015341983,0.09900001,4278.8,4278.7,0.70276456]
[1757015342182,1.00900001,4278.8,4278.7,0.70276456]
[1757015342479,1e-08,4278.8,4278.7,3.03992304]
[1757015342680,0.10220001,4278.8,4278.7,3.03992304]
[1757015344057,1e-08,4278.8,4278.7,3.03992304]
[1757015344293,0.10530001,4278.8,4278.7,3.03992304]
[1757015345187,0.59870001,4278.8,4278.7,0.70276456]
[1757015345394,1.00910001,4278.8,4278.7,3.03992304]
[1757015345788,0.59870001,4278.8,4278.7,0.70276456]
[1757015346098,1.00910001,4278.8,4278.6,0.004]
[1757015346388,0.1168,4278.7,4278.6,0.004]
[1757015346767,0.2251,4278.7,4278.6,0.004]
[1757015346961,0.2251,4278.7,4278.6,0.70682877]
[1757015347157,1.1259,4278.7,4278.6,0.70682877]
[1757015347369,3.46305848,4278.7,4278.6,0.004]
[1757015347568,5.18605848,4278.7,4278.6,0.004]
[1757015347870,2.8489,4278.7,4278.6,0.004]
[1757015348402,5.18605848,4278.7,4278.6,0.004]
[1757015349702,2.8489,4278.7,4278.6,0.004]
[1757015350008,2.4415,4278.7,4278.6,0.004]
[1757015350301,1.9481,4278.7,4278.6,0.004]
[1757015350508,5.15945848,4278.7,4278.6,0.004]
[1757015351799,1.9481,4278.7,4278.6,0.004]
[1757015352308,5.15945848,4278.7,4278.6,0.004]
[1757015352804,2.8223,4278.7,4278.6,0.004]
[1757015353001,2.4149,4278.7,4278.6,0.004]
[1757015353201,5.15945848,4278.7,4278.6,0.004]
[1757015354578,9.14545848,4278.7,4278.6,0.004]
[1757015354907,5.9341,4278.7,4278.6,0.004]
[1757015355284,9.14545848,4278.7,4278.6,0.004]
[1757015356509,5.9341,4278.7,4278.6,0.004]
[1757015356890,5.9321,4278.7,4278.6,0.004]
[1757015357087,1.8398,4278.7,4278.6,3.1083131]
[1757015357298,1.8398,4278.7,4278.6,3.5785131]
[1757015357299,5.8238,4278.7,4278.6,3.5785131]
[1757015357610,1.723,4278.7,4278.6,4.17009654]
[1757015357911,1e-08,4278.8,4278.7,2.33715848]
[1757015358111,1e-08,4278.8,4278.7,3.57445848]
[1757015358311,1e-08,4278.8,4278.7,4.7633424]
[1757015360916,1e-08,4278.8,4278.7,7.7633424]
[1757015361122,1e-08,4278.8,4278.7,8.5553424]
[1757015361321,1e-08,4278.8,4278.7,7.2936424]
[1757015361622,1e-08,4278.8,4278.7,3.5260424]
[1757015361822,1e-08,4278.8,4278.7,2.63455848]
[1757015362022,1e-08,4278.8,4278.7,3.10425848]
[1757015362729,1e-08,4278.8,4278.7,3.57445848]
[1757015363896,1e-08,4278.8,4278.7,8.48863006]
[1757015364227,1e-08,4278.8,4278.7,8.46525848]
[1757015364430,1e-08,4278.8,4278.7,9.67534504]
[1757015364621,1e-08,4278.8,4278.7,12.67534504]
[1757015368034,0.001,4279.7,4279.2,3.12888539]
[1757015368235,0.001,4279.7,4279.2,10.13125424]
[1757015368410,0.001,4279.7,4279.2,10.52208539]
[1757015368734,0.001,4279.7,4279.2,13.07526413]
[1757015368936,0.001,4279.7,4279.2,7.83406413]
[1757015369135,0.001,4279.7,4279.2,13.07526413]
[1757015372721,0.001,4279.7,4279.2,12.60506413]
[1757015372921,0.001,4279.7,4279.2,14.47686411]
[1757015373244,0.1,4279.3,4279.2,10.38546411]
[1757015374127,0.001,4279.3,4279.2,10.68286411]
[1757015374336,0.001,4279.3,4279.2,7.64576411]
[1757015374863,0.001,4279.3,4279.2,11.62176411]
[1757015375082,0.001,4279.3,4279.2,10.68186411]
[1757015375253,0.001,4279.3,4279.2,10.38446411]
[1757015375881,0.001,4279.3,4279.2,12.41376411]
[1757015377545,0.001,4279.3,4279.2,11.94356411]
[1757015378192,0.001,4279.3,4279.2,12.41376411]
[1757015379589,0.001,4279.3,4279.2,15.41376411]
[1757015381174,0.001,4279.3,4279.2,15.59020595]
[1757015383706,0.001,4279.3,4279.2,14.65030595]
[1757015384294,0.001,4279.3,4279.2,15.11520595]
[1757015384882,0.001,4279.7,4279.6,2.33666697]
[1757015385100,0.001,4279.7,4279.6,8.76296695]
[1757015385282,0.001,4279.7,4279.6,9.71846364]
[1757015385478,0.1,4279.7,4279.6,6.05246364]
[1757015385683,0.1,4279.7,4279.6,10.01946364]
[1757015386212,0.001,4279.7,4279.6,10.01946364]
[1757015386877,0.1,4279.7,4279.6,10.01946364]
[1757015387611,0.1,4279.7,4279.6,9.06396695]
[1757015387785,0.5547,4279.7,4279.6,9.06396695]
[1757015388184,0.1,4279.7,4279.6,9.06396695]
[1757015388379,0.1,4279.7,4279.6,5.09696695]
[1757015388679,1.0881,4279.7,4279.6,4.67716695]
[1757015389985,1.0881,4279.7,4279.6,2.34049998]
[1757015390415,0.6715,4279.7,4279.6,2.34049998]
[1757015390612,0.2168,4279.7,4279.6,4.67716695]
[1757015390824,0.2168,4279.7,4279.6,2.34049998]
[1757015391025,0.6715,4279.7,4279.6,2.34049998]
[1757015391200,1.0881,4279.7,4279.6,2.34049998]
[1757015391391,1.0881,4279.7,4279.6,4.67716695]
[1757015392020,1.0881,4279.7,4279.6,2.34049998]
[1757015392224,0.6715,4279.7,4279.6,4.67716695]
[1757015392393,0.2168,4279.7,4279.6,4.67716695]
[1757015393492,0.2168,4279.7,4279.6,2.34049998]
[1757015393796,0.2168,4279.7,4279.2,2.34049998]
[1757015394014,0.1,4279.7,4279.5,2.33668418]
[1757015394213,0.1,4279.7,4279.3,2.33681903]
[1757015394413,0.1168,4279.4,4279.3,2.33681903]
[1757015394814,0.219,4279.4,4279.3,2.33681903]
[1757015395322,0.2158,4279.4,4279.3,2.33681903]
[1757015395498,0.6705,4279.4,4279.2,2.45729998]
[1757015395707,0.6705,4279.4,4279.0,2.33698317]
[1757015395708,0.8713,4279.3,4279.0,2.33698317]
[1757015395900,0.3159,4279.1,4279.0,2.33698317]
[1757015396089,0.4327,4279.1,4279.0,2.33698317]
[1757015396288,0.4327,4279.1,4278.8,0.004]
[1757015396490,0.6566,4279.0,4278.8,0.004]
[1757015396721,2.3796,4279.0,4278.8,0.004]
[1757015397012,2.85484924,4278.9,4278.8,0.004]
[1757015397422,0.9725,4278.9,4278.8,0.004]
[1757015397607,1.0893,4278.9,4278.8,0.004]
[1757015397807,5.0543,4278.9,4278.8,0.004]
[1757015398019,7.39134924,4278.9,4278.8,0.004]
[1757015398223,5.0543,4278.9,4278.8,0.004]
[1757015398619,7.39134924,4278.9,4278.8,0.004]
[1757015400204,1.0893,4278.9,4278.8,0.004]
[1757015400409,4.8905,4279.8,4278.8,0.004]
[1757015400601,3.969,4279.6,4278.8,0.004]
[1757015400833,3.969,4279.6,4278.8,0.28500607]
[1757015401032,1.774,4279.8,4279.6,2.33666697]
[1757015401033,0.051,4279.8,4279.6,2.33666697]
[1757015401203,0.051,4279.8,4279.6,8.33735508]
[1757015401408,0.051,4279.8,4279.6,13.35968842]
[1757015402718,0.051,4279.8,4279.6,7.38236697]
[1757015403243,0.001,4280.2,4279.6,7.38236697]
[1757015403244,0.001,4280.2,4279.7,2.33661237]
[1757015403453,0.001,4280.2,4280.1,6.128394]
[1757015403660,0.001,4280.2,4280.1,6.418394]
[1757015403820,0.1,4280.2,4279.3,4.9377]
[1757015404019,0.001,4280.2,4279.4,3.0]
[1757015404254,0.001,4280.2,4279.4,6.59367618]
[1757015404407,0.001,4280.2,4280.1,2.626394]
[1757015404810,0.001,4280.2,4280.1,3.590094]
[1757015405011,0.1,4280.2,4280.1,2.336394]
[1757015405210,0.1,4280.2,4279.1,0.4649]
[1757015405530,3.975,4280.1,4279.6,2.33662061]
[1757015405708,0.1022,4279.7,4278.9,0.4988]
[1757015405909,2.1777,4279.6,4278.9,0.4988]
[1757015406107,0.099,4279.0,4278.8,0.004]
[1757015406310,3.978,4278.9,4278.8,0.004]
[1757015406509,4.8493,4278.9,4278.8,0.004]
[1757015406713,3.98,4279.5,4279.2,2.33687686]
[1757015406909,3.98,4279.5,4278.8,0.4939]
[1757015407114,3.985,4279.4,4278.9,2.33704455]
[1757015407342,3.985,4279.4,4278.8,2.3660631]
[1757015407578,3.985,4279.4,4278.8,0.029]
[1757015407924,0.099,4278.9,4278.8,0.029]
[1757015408342,0.9703,4278.9,4278.8,0.029]
[1757015408640,0.099,4278.9,4278.8,0.029]
[1757015408841,4.084,4278.9,4278.8,0.029]
[1757015409560,4.083,4278.9,4278.8,0.029]
[1757015410072,4.5816,4278.9,4278.8,0.029]
[1757015410366,7.33524924,4278.9,4278.8,0.029]
[1757015410864,7.45204924,4278.9,4278.8,0.029]
[1757015412259,10.45204924,4278.9,4278.8,0.029]
[1757015412459,11.24404924,4278.9,4278.8,0.029]
[1757015416666,10.45204924,4278.9,4278.8,0.029]
[1757015417971,10.03544924,4278.9,4278.8,0.029]
[1757015418339,5.55284924,4278.9,4278.8,0.029]
[1757015418646,3.1168,4278.9,4278.8,0.029]
[1757015418861,9.43484924,4278.9,4278.8,0.029]
[1757015419042,3.1168,4278.9,4278.8,0.3377]
[1757015419258,0.1168,4278.9,4278.8,1.2791]
[1757015419575,4.0988,4278.9,4278.8,1.40741]
[1757015419745,4.0988,4278.9,4278.8,3.74451386]
[1757015419949,0.1168,4278.9,4278.8,1.40741]
[1757015420158,4.0988,4278.9,4278.8,3.74451386]
[1757015420885,0.1168,4278.9,4278.8,3.74451386]
[1757015421662,0.1168,4278.9,4278.8,0.029]
[1757015422084,2.55284924,4278.9,4278.8,0.029]
[1757015422584,6.83462765,4278.9,4278.8,0.029]
[1757015422785,7.62662765,4278.9,4278.8,0.029]
[1757015424485,6.46804924,4278.9,4278.8,0.029]
[1757015425686,5.55284924,4278.9,4278.8,0.029]
[1757015425891,9.53884924,4278.9,4278.8,0.029]
[1757015426389,10.45404924,4278.9,4278.8,0.029]
[1757015427288,3.12915848,4278.7,4278.6,1e-08]
[1757015427495,41.91450747,4278.7,4278.6,1e-08]
[1757015427658,35.88871947,4278.7,4278.6,1e-08]
[1757015428085,28.04199647,4278.7,4278.6,1e-08]
[1757015428694,28.40864131,4278.7,4278.6,1e-08]
[1757015429260,28.19734131,4278.7,4278.6,1e-08]
[1757015429460,11.41180332,4278.7,4278.6,1e-08]
[1757015429885,11.71530332,4278.7,4278.6,1e-08]
[1757015430187,26.90384131,4278.7,4278.6,1e-08]
[1757015430698,26.90384131,4278.7,4278.6,0.30870001]
[1757015430699,8.52660332,4278.7,4278.6,0.30870001]
[1757015430898,8.52660332,4278.7,4278.6,1e-08]
[1757015431593,11.52660332,4278.7,4278.6,1e-08]
[1757015431961,11.62560332,4278.7,4278.6,1e-08]
[1757015432162,11.52660332,4278.7,4278.6,1e-08]
[1757015432793,7.54360332,4278.7,4278.6,0.80860001]
[1757015432999,11.52460332,4278.7,4278.6,1.25010001]
[1757015433195,11.52460332,4278.7,4278.6,1e-08]
[1757015433394,11.83100332,4278.7,4278.6,1e-08]
[1757015435189,11.52460332,4278.7,4278.6,1e-08]
[1757015437868,11.83100332,4278.7,4278.6,1e-08]
[1757015438193,7.54360332,4278.7,4278.6,0.30870001]
[1757015438497,11.52160332,4278.7,4278.6,0.75020001]
[1757015438800,11.52160332,4278.7,4278.6,0.30870001]
[1757015438997,11.52160332,4278.7,4278.6,1e-08]
[1757015439367,11.62060332,4278.7,4278.6,1e-08]
[1757015439566,11.64400332,4278.7,4278.6,1e-08]
[1757015439890,11.64400332,4278.7,4278.1,0.004]
[1757015439891,0.792,4278.5,4278.1,0.004]
[1757015440092,17.52596962,4278.2,4278.1,0.004]
[1757015440293,21.60516962,4278.2,4278.1,0.004]
[1757015440866,2.33743163,4278.2,4278.1,0.3027]
[1757015441066,6.31443163,4278.2,4278.1,0.3027]
[1757015441306,6.31443163,4278.2,4278.1,0.004]
[1757015441877,6.31443163,4278.2,4278.1,0.3027]
[1757015442794,6.68108169,4278.2,4278.1,0.3027]
[1757015443491,3.975,4278.2,4278.1,1.2424]
[1757015445315,6.31243163,4278.2,4278.1,0.7569]
[1757015445620,6.31243163,4278.2,4278.1,0.3027]
[1757015446116,6.31243163,4278.2,4278.1,0.004]
[1757015446334,9.41143163,4278.2,4278.1,0.004]
[1757015447390,9.31243163,4278.2,4278.1,0.7569]
[1757015447803,9.31243163,4278.2,4278.1,0.004]
[1757015449526,9.31243163,4278.2,4278.1,0.004]
[1757015449896,9.42923163,4278.2,4278.1,0.004]
[1757015450808,0.1168,4278.2,4278.1,1.2424]
[1757015451135,4.0918,4278.2,4278.1,1.2424]
[1757015452008,4.0918,4278.2,4278.1,0.3027]
[1757015452244,6.42923163,4278.2,4278.1,0.7569]
[1757015452715,6.42923163,4278.2,4278.1,1.2424]
[1757015452716,4.0918,4278.2,4278.1,1.2424]
[1757015453601,0.1168,4278.2,4278.1,1.2424]
[1757015453807,4.0918,4278.2,4278.1,1.2424]
[1757015455933,6.42923163,4278.2,4278.1,0.3027]
[1757015456136,6.42923163,4278.2,4278.1,0.004]
[1757015456537,6.42923163,4278.2,4278.1,0.3027]
[1757015457032,6.43023163,4278.2,4278.1,0.3027]
[1757015457713,4.0928,4278.2,4278.1,1.2424]
[1757015458117,0.1178,4278.2,4278.1,1.36994]
[1757015458311,4.0888,4278.2,4278.1,1.36994]
[1757015458639,4.0888,4278.2,4278.1,3.70742626]
[1757015458834,4.0888,4278.2,4278.1,1.36994]
[1757015459034,0.1178,4278.2,4278.1,3.70742626]
[1757015459339,4.0888,4278.2,4278.1,3.70742626]
[1757015459538,4.0898,4278.2,4278.1,3.70742626]
[1757015459935,4.0898,4278.2,4278.1,1.36994]
[1757015460240,4.0898,4278.2,4278.1,1.2424]
[1757015461914,4.1888,4278.2,4278.1,2.34449998]
[1757015462114,6.40943163,4278.2,4278.1,2.34449998]
[1757015462531,6.43283163,4278.2,4278.1,2.34449998]
[1757015463812,10.30393163,4278.2,4278.1,0.004]
[1757015464845,9.43283163,4278.2,4278.1,0.004]
[1757015465620,10.30393163,4278.2,4278.1,0.004]
[1757015466027,9.88733163,4278.2,4278.1,0.004]
[1757015466231,9.43283163,4278.2,4278.1,0.004]
[1757015466933,9.88733163,4278.2,4278.1,0.004]
[1757015467232,11.09593163,4278.2,4278.1,0.004]
[1757015467447,25.09783763,4278.2,4278.1,0.004]
[1757015467645,25.12093763,4278.2,4278.1,0.004]
[1757015467838,24.40921963,4278.2,4278.1,0.004]